bitfinex/quotes_SOLUSD_20240813
["timestamp","ask_amount","ask_price","bid_price","bid_amount"]
[1723554062256,25.05423818,146.88,146.86,6.809]
[1723554062474,1.70230422,146.87,146.84,6.8097]
[1723554062667,31.86253818,146.88,146.84,6.8097]
[1723554062871,25.05423818,146.88,146.84,6.8097]
[1723554063080,25.05423818,146.88,146.87,17.0218]
[1723554063318,25.05423818,146.88,146.87,23.8305]
[1723554064784,31.27008835,146.9,146.89,6.93329]
[1723554065103,0.8187459,146.92,146.91,23.94949]
[1723554065304,0.8187459,146.92,146.91,89.32596]
[1723554065487,0.8187459,146.92,146.91,128.41596]
[1723554065884,0.8187459,146.92,146.91,162.45036]
[1723554066385,49.91763886,146.98,146.94,23.94459]
[1723554066591,49.91763886,146.98,146.94,83.41106]
[1723554066895,49.91763886,146.98,146.94,43.94459]
[1723554067097,49.91763886,146.98,146.94,44.32106]
[1723554067472,49.91763886,146.98,146.94,43.8191]
[1723554067680,49.91763886,146.98,146.94,23.8191]
[1723554068103,49.91763886,146.98,146.94,43.8191]
[1723554068698,49.91763886,146.98,146.94,43.94459]
[1723554068898,49.91763886,146.98,146.94,43.8191]
[1723554070506,16.2979,146.94,146.91,17.0164]
[1723554070706,16.2979,146.94,146.91,23.8231]
[1723554070918,13.4294,146.93,146.88,23.828]
[1723554071088,6.6231,146.93,146.91,6.8068]
[1723554071291,6.6231,146.93,146.92,6.8064]
[1723554071496,43.70178869,146.95,146.94,6.8054]
[1723554071703,43.70178869,146.95,146.94,45.8954]
[1723554072006,43.70178869,146.95,146.94,6.8054]
[1723554072317,43.70178869,146.95,146.94,65.8954]
[1723554072494,49.91763886,146.98,146.97,23.93979]
[1723554072685,49.91763886,146.98,146.97,23.8143]
[1723554072889,49.91763886,146.98,146.97,24.19077]
[1723554073106,49.91763886,146.98,146.97,24.31626]
[1723554073316,49.91763886,146.98,146.97,44.31626]
[1723554073794,49.91763886,146.98,146.97,45.65861085]
[1723554074116,49.91763886,146.98,146.97,44.31626]
[1723554074815,56.13348903,147.0,146.99,6.8031]
[1723554075044,68.56518937,147.06,147.02,57.94049]
[1723554075309,68.56518937,147.06,147.05,23.8014]
[1723554075615,68.56518937,147.06,147.05,44.30336]
[1723554075818,68.56518937,147.06,147.05,89.30336]
[1723554076588,68.56518937,147.06,147.05,44.30336]
[1723554077603,68.56518937,147.06,147.05,128.39336]
[1723554078326,68.56518937,147.06,147.05,89.30336]
[1723554078793,68.37518937,147.06,147.05,44.30336]
[1723554078993,15.3806,147.05,146.92,3.2353]
[1723554079209,15.3806,147.05,146.99,34.0156]
[1723554079210,6.6036,147.04,146.99,34.0156]
[1723554079516,15.3806,147.05,147.02,17.0039]
[1723554079718,15.3806,147.05,147.04,6.8008]
[1723554079921,68.37518937,147.06,147.05,23.8014]
[1723554080615,68.37518937,147.06,147.05,68.8014]
[1723554080831,68.37518937,147.06,147.05,108.39336]
[1723554081130,63.21458937,147.06,147.05,89.30336]
[1723554081289,63.21458937,147.06,147.05,44.30336]
[1723554082720,63.21458937,147.06,147.05,89.30336]
[1723554082921,63.21458937,147.06,147.05,44.30336]
[1723554083104,63.21458937,147.06,147.05,23.8014]
[1723554084536,59.38308937,147.06,147.05,24.05238]
[1723554084714,50.96318937,147.06,147.05,89.30336]
[1723554085240,46.80618937,147.06,147.05,89.30336]
[1723554087044,41.28108937,147.06,147.05,89.30336]
[1723554087230,41.28108937,147.06,147.05,88.8014]
[1723554087739,41.28108937,147.06,147.05,23.8014]
[1723554088936,63.54868937,147.06,147.04,6.8008]
[1723554089140,63.54868937,147.06,147.05,6.8004]
[1723554090051,63.54868937,147.06,147.02,6.8013]
[1723554090550,63.54868937,147.06,147.03,6.8013]
[1723554090748,63.54868937,147.06,147.02,6.8016]
[1723554090922,63.54868937,147.06,147.01,17.0052]
[1723554091129,6.8008,147.04,146.99,6.8031]
[1723554091352,6.8026,147.01,146.94,17.0129]
[1723554091555,63.6415,147.05,146.96,6.8044]
[1723554091846,46.64,147.02,146.95,6.8049]
[1723554092048,6.1157,146.98,146.94,17.0129]
[1723554092256,6.1157,146.98,146.97,6.8041]
[1723554092417,6.1157,146.98,146.96,23.8151]
[1723554092618,6.1157,146.98,146.96,17.0106]
[1723554093057,6.1157,146.98,146.96,23.815]
[1723554093231,12.9197,146.98,146.93,23.8202]
[1723554093427,6.1157,146.98,146.93,6.8059]
[1723554093636,6.1157,146.98,146.91,17.0165]
[1723554093855,12.9194,146.98,146.93,6.8058]
[1723554094163,6.1157,146.98,146.91,23.823]
[1723554094332,6.8047,146.96,146.91,23.823]
[1723554094532,6.8052,146.95,146.91,17.0165]
[1723554094838,16.1791,146.93,146.89,6.8076]
[1723554095040,16.1791,146.93,146.88,17.02]
[1723554095660,22.9853,146.93,146.88,23.8279]
[1723554095965,16.1791,146.93,146.88,17.02]
[1723554096139,6.3996,146.91,146.87,6.8083]
[1723554096338,13.2065,146.91,146.79,80.7008]
[1723554096559,6.3996,146.91,146.8,7.11810335]
[1723554097143,6.3996,146.91,146.89,17.0189]
[1723554097344,6.3996,146.91,146.89,23.8266]
[1723554097857,6.3996,146.91,146.89,17.0189]
[1723554098359,6.3996,146.91,146.9,6.8073]
[1723554098935,6.3996,146.91,146.89,17.0189]
[1723554099446,6.3996,146.91,146.89,23.8266]
[1723554099847,6.3996,146.91,146.9,6.8073]
[1723554100633,16.1791,146.93,146.92,6.8064]
[1723554101942,6.0162,146.96,146.93,6.8059]
[1723554102259,12.821,146.96,146.91,23.8227]
[1723554102837,6.0162,146.96,146.91,17.0162]
[1723554103166,6.0162,146.96,146.95,6.805]
[1723554103372,6.6034,146.99,146.95,0.12549]
[1723554103670,6.6034,146.99,146.97,6.8037]
[1723554103851,13.4066,146.99,146.92,0.25098]
[1723554104158,6.6034,146.99,146.92,0.12549]
[1723554104348,6.6034,146.99,146.97,6.8038]
[1723554105136,6.3052,147.05,147.01,6.8022]
[1723554105356,6.3052,147.05,146.95,0.12549]
[1723554105561,6.3052,147.05,146.95,65.50196]
[1723554105770,6.3052,147.05,146.97,17.0098]
[1723554105936,6.3052,147.05,146.99,6.803]
[1723554106565,6.8016,147.03,146.98,6.8034]
[1723554106771,6.8008,147.04,146.97,17.0098]
[1723554106979,6.8008,147.04,147.0,6.8026]
[1723554107262,13.1057,147.05,147.0,6.8026]
[1723554107475,6.3052,147.05,147.01,17.005]
[1723554107942,13.1056,147.05,147.01,23.8072]
[1723554108789,6.3052,147.05,147.02,6.8016]
[1723554109178,6.3052,147.05,147.03,6.8012]
[1723554109380,6.3052,147.05,147.02,6.8016]
[1723554109777,6.3052,147.05,146.99,0.12549]
[1723554109976,6.3052,147.05,146.98,17.0082]
[1723554110287,6.8022,147.01,146.97,6.8037]
[1723554110484,6.803,147.0,146.95,23.8164]
[1723554110689,6.803,147.0,146.96,6.8044]
[1723554112701,6.8024,147.01,146.97,6.8038]
[1723554112871,6.8019,147.02,146.98,6.8035]
[1723554113195,38.91,147.04,146.97,23.8136]
[1723554113196,6.8025,147.01,146.97,23.8136]
[1723554113405,6.3052,147.05,147.0,17.0064]
[1723554113985,6.3052,147.05,147.0,23.8087]
[1723554114308,6.3052,147.05,146.98,0.12549]
[1723554114309,6.8014,147.03,146.98,6.92869]
[1723554114471,6.8014,147.03,146.99,6.8031]
[1723554114672,6.8014,147.03,146.98,6.8035]
[1723554114867,6.8021,147.02,146.97,17.0093]
[1723554115180,45.2152,147.05,146.99,17.0075]
[1723554115388,52.0158,147.05,146.99,17.0075]
[1723554115587,52.0158,147.05,147.0,6.8025]
[1723554115904,6.8009,147.04,147.0,6.8025]
[1723554116709,6.3052,147.05,146.99,17.0075]
[1723554116908,6.8019,147.02,146.94,34.0274]
[1723554117108,6.8027,147.0,146.96,23.815]
[1723554117284,6.8026,147.01,146.97,26.804]
[1723554118103,38.91,147.03,146.97,26.804]
[1723554118104,6.8019,147.02,146.97,26.804]
[1723554118399,6.1416,146.97,146.93,17.0139]
[1723554118707,12.9461,146.97,146.93,17.0139]
[1723554119084,12.9461,146.97,146.9,17.0176]
[1723554119085,46.75309023,146.97,146.9,17.0176]
[1723554119319,15.2085,146.96,146.9,17.0176]
[1723554120414,38.91,146.95,146.87,17.0211]
[1723554120576,6.8056,146.94,146.89,6.8077]
[1723554121321,38.91,146.95,146.88,6.8082]
[1723554121477,6.806,146.93,146.88,6.8082]
[1723554121978,38.91,146.91,146.84,7.11350398]
[1723554122214,6.8067,146.92,146.87,6.8087]
[1723554122510,6.8073,146.91,146.86,23.8316]
[1723554122917,6.8077,146.9,146.86,17.0225]
[1723554123122,6.5299,146.89,146.86,17.0225]
[1723554123322,6.5299,146.89,146.86,6.809]
[1723554123832,13.3378,146.89,146.83,17.0257]
[1723554124045,16.486,146.87,146.8,17.0293]
[1723554124313,16.486,146.87,146.82,17.0268]
[1723554124513,16.486,146.87,146.83,0.74292669]
[1723554124721,16.486,146.87,146.84,17.0248]
[1723554125104,6.8092,146.86,146.81,23.8394]
[1723554125417,16.486,146.87,146.75,37.3048]
[1723554125418,6.8109,146.83,146.78,23.8443]
[1723554125619,6.8102,146.84,146.79,6.8121]
[1723554125790,6.8106,146.83,146.79,6.8121]
[1723554126109,6.0392,146.81,146.78,17.0315]
[1723554126414,6.8121,146.8,146.75,17.035]
[1723554126624,6.0392,146.81,146.75,17.035]
[1723554126787,6.0392,146.81,146.71,34.0807]
[1723554126788,6.0392,146.81,146.72,38.91]
[1723554126993,6.0392,146.81,146.79,23.8428]
[1723554127408,6.0392,146.81,146.79,17.0304]
[1723554127597,6.0392,146.81,146.76,17.0339]
[1723554127784,6.0392,146.81,146.78,6.8127]
[1723554127988,6.0392,146.81,146.77,6.8132]
[1723554128416,12.8509,146.81,146.77,6.8132]
[1723554128616,22.2485,146.81,146.76,17.0339]
[1723554128821,6.8121,146.8,146.76,17.0339]
[1723554129015,22.2485,146.81,146.74,6.8146]
[1723554129187,22.2485,146.81,146.71,34.0807]
[1723554129394,6.8123,146.8,146.75,6.8139]
[1723554130020,29.06,146.81,146.74,17.0362]
[1723554130291,29.06,146.81,146.77,6.8132]
[1723554130501,22.2485,146.81,146.77,6.8132]
[1723554130704,29.0601,146.81,146.76,23.8475]
[1723554130913,22.2485,146.81,146.78,17.0316]
[1723554131304,6.809,146.87,146.81,17.0285]
[1723554131511,22.065,146.89,146.83,23.8365]
[1723554131512,6.8083,146.88,146.83,23.8365]
[1723554131896,6.8088,146.87,146.83,17.0261]
[1723554132112,6.8097,146.85,146.8,17.0294]
[1723554132528,22.065,146.89,146.77,17.0328]
[1723554132529,38.91,146.88,146.77,17.0328]
[1723554132822,6.8114,146.82,146.78,6.8126]
[1723554133007,38.91,146.86,146.77,23.8461]
[1723554133203,6.8112,146.82,146.77,23.8461]
[1723554133441,6.8112,146.82,146.78,6.8128]
[1723554133622,12.8961,146.81,146.77,17.0328]
[1723554133826,12.8961,146.81,146.79,17.0308]
[1723554133827,6.0845,146.81,146.79,17.0308]
[1723554134003,6.2363,146.87,146.76,38.91]
[1723554134340,6.2363,146.87,146.82,17.0275]
[1723554134630,6.2363,146.87,146.84,6.8098]
[1723554135320,6.2363,146.87,146.84,17.0249]
[1723554135699,6.2363,146.87,146.84,23.8348]
[1723554136228,6.2363,146.87,146.85,6.8096]
[1723554136429,6.2363,146.87,146.86,6.8092]
[1723554136999,6.2363,146.87,146.84,17.0249]
[1723554137200,15.751,146.89,146.87,6.8083]
[1723554137402,15.751,146.89,146.88,6.8082]
[1723554137631,6.8083,146.88,146.84,6.81]
[1723554137927,6.8088,146.87,146.82,6.8106]
[1723554138151,22.5589,146.89,146.85,6.8095]
[1723554138545,22.5589,146.89,146.84,23.8348]
[1723554138944,15.751,146.89,146.84,17.0249]
[1723554139243,22.559,146.89,146.85,6.8095]
[1723554139449,6.8083,146.88,146.84,23.835]
[1723554139655,15.751,146.89,146.81,17.0281]
[1723554139956,32.7711,146.89,146.81,17.0281]
[1723554140245,6.8099,146.85,146.81,17.0281]
[1723554140447,34.4736722,146.89,146.79,6.8124]
[1723554140448,17.0222,146.87,146.79,6.8124]
[1723554140624,54.661,146.89,146.78,23.844]
[1723554140625,17.0244,146.85,146.78,23.844]
[1723554140823,6.8103,146.84,146.8,6.8119]
[1723554141021,17.0214,146.88,146.8,17.0296]
[1723554141361,15.751,146.89,146.84,23.8346]
[1723554141650,15.751,146.89,146.84,17.0249]
[1723554141953,15.751,146.89,146.86,6.8089]
[1723554142150,15.751,146.89,146.86,17.0226]
[1723554142558,15.751,146.89,146.86,23.8316]
[1723554142755,6.5162,146.91,146.89,6.8077]
[1723554142925,6.5162,146.91,146.88,23.8285]
[1723554143958,6.5162,146.91,146.82,38.91]
[1723554144136,6.5162,146.91,146.8,72.9678]
[1723554144460,6.8088,146.87,146.83,6.8102]
[1723554144665,6.8084,146.88,146.84,6.8101]
[1723554144823,6.5162,146.91,146.89,6.8078]
[1723554145145,6.5162,146.91,146.9,6.8073]
[1723554145325,6.5162,146.91,146.85,17.0234]
[1723554145532,6.5162,146.91,146.86,6.93419]
[1723554145533,13.3234,146.91,146.86,6.93419]
[1723554145759,6.8073,146.9,146.86,6.8087]
[1723554146121,6.5162,146.91,146.88,6.8082]
[1723554146540,6.5162,146.91,146.84,0.37647]
[1723554146742,16.5291,146.93,146.85,0.12549]
[1723554146948,55.9207,146.97,146.94,6.8054]
[1723554146949,6.075,146.95,146.94,6.8054]
[1723554147454,6.075,146.95,146.93,23.82]
[1723554148062,6.075,146.95,146.94,6.8054]
[1723554148625,16.5896,146.97,146.93,17.0143]
[1723554149131,1.70125234,146.96,146.9,17.0175]
[1723554149331,16.5896,146.97,146.9,17.0175]
[1723554150267,16.5896,146.97,146.9,23.8245]
[1723554150427,6.8051,146.95,146.91,6.8068]
[1723554150629,6.8055,146.94,146.9,23.8247]
[1723554150869,6.0818,146.91,146.82,38.91]
[1723554151230,12.8888,146.91,146.86,23.8315]
[1723554151530,12.8888,146.91,146.82,38.91]
[1723554151531,6.0818,146.91,146.89,6.8078]
[1723554151731,6.0818,146.91,146.88,23.8282]
[1723554151938,6.0818,146.91,146.86,6.8088]
[1723554152151,6.0818,146.91,146.85,17.0235]
[1723554152152,6.8077,146.9,146.85,17.0235]
[1723554152457,6.8081,146.89,146.85,23.833]
[1723554152658,6.0818,146.91,146.85,17.0235]
[1723554152659,6.8082,146.88,146.85,17.0235]
[1723554152969,15.7635,146.89,146.82,17.0274]
[1723554153141,6.8104,146.84,146.8,6.8118]
[1723554153472,6.8104,146.84,146.75,38.91]
[1723554153473,32.7833,146.89,146.79,17.0304]
[1723554153635,6.8098,146.85,146.8,6.8116]
[1723554153974,6.8098,146.85,146.75,38.91]
[1723554153975,17.0224,146.87,146.75,17.035]
[1723554154267,6.8112,146.82,146.77,17.0329]
[1723554154439,71.002,146.86,146.73,34.0759]
[1723554154440,6.81,146.85,146.8,6.8118]
[1723554154634,6.8096,146.85,146.81,6.8113]
[1723554154834,12.8113,146.86,146.79,17.0306]
[1723554155035,6.8107,146.83,146.78,6.8124]
[1723554155260,6.002,146.86,146.8,6.8115]
[1723554155562,6.81,146.85,146.8,6.8115]
[1723554155861,6.002,146.86,146.85,6.8096]
[1723554156359,6.002,146.86,146.81,17.0284]
[1723554156560,6.8097,146.85,146.81,17.0284]
[1723554156763,6.8101,146.84,146.79,6.8123]
[1723554156948,6.8101,146.84,146.8,6.8119]
[1723554157154,6.002,146.86,146.81,6.8112]
[1723554157338,12.8113,146.86,146.82,6.811]
[1723554157543,6.002,146.86,146.82,17.027]
[1723554157735,6.6132,146.93,146.83,91.95549]
[1723554158072,6.6132,146.93,146.88,17.0206]
[1723554158438,6.6132,146.93,146.89,6.8078]
[1723554158855,6.6132,146.93,146.92,6.8064]
[1723554159063,6.6132,146.93,146.91,17.0168]
[1723554159374,6.6132,146.93,146.91,23.8236]
[1723554159560,6.6132,146.93,146.9,6.807]
[1723554160269,13.4191,146.93,146.89,6.8077]
[1723554160567,13.4191,146.93,146.88,6.8082]
[1723554160568,6.8065,146.92,146.88,6.8082]
[1723554160775,6.6132,146.93,146.88,6.8081]
[1723554161185,6.8068,146.91,146.87,23.8299]
[1723554161551,6.8074,146.9,146.87,17.0213]
[1723554161776,6.807,146.91,146.87,17.0213]
[1723554162148,6.8064,146.92,146.88,6.8081]
[1723554162390,13.4192,146.93,146.89,6.8077]
[1723554162667,6.6132,146.93,146.91,6.8067]
[1723554163471,6.6132,146.93,146.9,6.8072]
[1723554163681,13.4191,146.93,146.89,23.826]
[1723554164692,6.6132,146.93,146.86,17.0221]
[1723554164849,6.6132,146.93,146.9,6.807]
[1723554165051,6.6132,146.93,146.85,34.0482]
[1723554165052,13.4194,146.93,146.89,6.8076]
[1723554165449,6.8069,146.91,146.85,51.0719]
[1723554165657,6.6132,146.93,146.86,20.0]
[1723554166048,6.6132,146.93,146.88,6.8079]
[1723554166249,6.6132,146.93,146.87,17.0215]
[1723554166548,6.6132,146.93,146.84,17.0245]
[1723554166549,6.8078,146.89,146.84,17.0245]
[1723554166947,6.8078,146.89,146.85,6.8093]
[1723554167180,6.8074,146.9,146.86,6.8091]
[1723554167377,6.8078,146.89,146.85,6.8096]
[1723554167678,6.8082,146.88,146.84,23.8345]
[1723554168275,1.70247186,146.92,146.84,23.8345]
[1723554168477,6.8102,146.84,146.81,17.0282]
[1723554168695,6.8098,146.85,146.81,6.8113]
[1723554169200,68.6905,146.91,146.79,23.843]
[1723554169201,6.8101,146.84,146.79,23.843]
[1723554169375,28.6713,146.83,146.79,23.843]
[1723554169794,28.6713,146.83,146.79,17.0308]
[1723554170290,21.8605,146.83,146.79,17.0308]
[1723554170813,21.8605,146.83,146.79,23.8428]
[1723554171700,21.8605,146.83,146.8,6.8119]
[1723554171931,21.8605,146.83,146.82,6.811]
[1723554172282,21.8605,146.83,146.81,23.8397]
[1723554172894,21.8605,146.83,146.82,6.811]
[1723554173100,15.9181,146.88,146.86,17.0226]
[1723554173295,15.9181,146.88,146.87,6.8087]
[1723554173500,15.9181,146.88,146.86,17.0226]
[1723554173501,15.9181,146.88,146.86,23.8316]
[1723554173700,15.9181,146.88,146.86,23.8318]
[1723554173908,15.9181,146.88,146.86,17.0226]
[1723554174080,15.9181,146.88,146.87,6.8087]
[1723554174403,6.0942,146.9,146.89,6.8078]
[1723554174705,6.0942,146.9,146.86,6.8088]
[1723554174889,6.0942,146.9,146.87,6.8084]
[1723554175093,6.0942,146.9,146.82,0.12549]
[1723554175293,6.8106,146.83,146.79,6.8123]
[1723554175474,6.0942,146.9,146.76,46.83]
[1723554175683,6.0942,146.9,146.88,6.8082]
[1723554175889,6.0942,146.9,146.87,17.0213]
[1723554176113,6.0942,146.9,146.88,6.8081]
[1723554176287,6.0942,146.9,146.89,6.8078]
[1723554176609,12.9019,146.9,146.85,6.8092]
[1723554176818,12.9016,146.9,146.85,6.8092]
[1723554177124,6.8078,146.89,146.84,17.0246]
[1723554177292,12.9015,146.9,146.84,17.0246]
[1723554177789,6.0942,146.9,146.81,17.0281]
[1723554177992,6.8087,146.87,146.82,6.811]
[1723554178395,6.8096,146.86,146.78,17.0319]
[1723554178611,6.8096,146.86,146.81,6.8115]
[1723554178813,6.8102,146.84,146.8,23.841]
[1723554179001,62.0931,146.9,146.8,23.841]
[1723554179002,15.7249,146.86,146.8,17.0292]
[1723554179205,15.7249,146.86,146.82,6.8106]
[1723554179493,15.7249,146.86,146.82,6.8109]
[1723554179999,15.7249,146.86,146.83,6.8105]
[1723554180197,15.7249,146.86,146.82,6.811]
[1723554180411,22.5342,146.86,146.82,6.811]
[1723554180722,15.7249,146.86,146.83,6.8105]
[1723554180890,15.7249,146.86,146.82,6.8109]
[1723554181093,22.5342,146.86,146.81,6.8113]
[1723554181498,6.8097,146.85,146.8,23.8411]
[1723554181705,22.5342,146.86,146.81,6.8114]
[1723554181915,22.5342,146.86,146.76,34.068]
[1723554181916,15.7249,146.86,146.78,6.8124]
[1723554182107,6.8107,146.83,146.79,6.8124]
[1723554182314,6.8107,146.83,146.77,17.0329]
[1723554182513,6.8102,146.84,146.79,6.8123]
[1723554182811,6.8098,146.85,146.8,6.8117]
[1723554183272,6.8107,146.83,146.79,23.8428]
[1723554183424,8.29712763,146.85,146.77,6.8133]
[1723554183595,6.812,146.8,146.76,23.8473]
[1723554184118,56.0056,146.84,146.73,17.0373]
[1723554184119,6.8125,146.79,146.73,17.0373]
[1723554184416,6.8109,146.83,146.74,34.0726]
[1723554184615,6.811,146.82,146.78,23.8449]
[1723554184796,6.594,146.85,146.76,6.8133]
[1723554184988,6.8123,146.8,146.75,17.035]
[1723554185221,6.8126,146.79,146.75,23.8492]
[1723554186110,28.707,146.78,146.75,17.035]
[1723554186313,21.8941,146.78,146.72,23.8536]
[1723554186496,1.70372843,146.77,146.72,17.0383]
[1723554186696,21.8941,146.78,146.66,54.3168]
[1723554186897,6.8146,146.75,146.71,6.8158]
[1723554187113,6.8139,146.76,146.72,6.8154]
[1723554187309,6.8139,146.76,146.71,23.8556]
[1723554187733,6.8144,146.75,146.71,23.8556]
[1723554187923,1.70403962,146.74,146.72,6.8156]
[1723554188129,1.70399884,146.73,146.71,23.8556]
[1723554188435,6.8144,146.75,146.71,23.8556]
[1723554188603,0.12549,146.77,146.68,17.043]
[1723554188809,6.8157,146.72,146.68,23.8602]
[1723554189011,6.8153,146.73,146.68,23.8602]
[1723554189229,6.2285,146.71,146.67,6.818]
[1723554189612,6.2285,146.71,146.69,6.8168]
[1723554189804,6.2285,146.71,146.7,6.8166]
[1723554189999,6.2285,146.71,146.69,23.8592]
[1723554190420,6.2285,146.71,146.69,17.0423]
[1723554190821,6.2285,146.71,146.67,6.8177]
[1723554191019,6.2285,146.71,146.68,17.0433]
[1723554191225,6.2285,146.71,146.7,6.8166]
[1723554191612,6.2285,146.71,146.69,6.817]
[1723554191933,6.2285,146.71,146.68,23.8607]
[1723554192241,6.2285,146.71,146.66,6.8183]
[1723554192242,16.3499,146.7,146.66,6.8183]
[1723554192408,23.1666,146.7,146.66,6.8183]
[1723554192733,16.3499,146.7,146.66,6.8183]
[1723554193249,23.1665,146.7,146.65,23.8656]
[1723554193538,23.1667,146.7,146.66,20.0]
[1723554193728,16.3499,146.7,146.67,6.8177]
[1723554193932,16.3499,146.7,146.67,17.0447]
[1723554194124,16.3499,146.7,146.68,6.8173]
[1723554194308,16.3499,146.7,146.69,6.817]
[1723554194504,16.3499,146.7,146.67,23.8626]
[1723554195013,16.3499,146.7,146.67,17.0447]
[1723554195219,16.3499,146.7,146.69,6.817]
[1723554195429,6.2285,146.71,146.7,23.8581]
[1723554195634,15.4736,146.74,146.73,23.8532]
[1723554196237,21.493,146.78,146.77,6.8133]
[1723554196458,6.8098,146.85,146.76,17.0343]
[1723554196606,22.6089,146.84,146.81,6.8111]
[1723554196805,29.4194,146.84,146.8,17.0294]
[1723554197037,6.8109,146.83,146.78,6.8125]
[1723554197235,22.6089,146.84,146.79,6.8123]
[1723554197236,29.4191,146.84,146.79,6.8123]
[1723554197731,6.8106,146.83,146.79,6.8123]
[1723554198122,22.6089,146.84,146.74,17.0365]
[1723554198328,6.8134,146.77,146.72,6.8153]
[1723554198623,58.98,146.83,146.74,6.8147]
[1723554198624,6.813,146.78,146.74,6.8147]
[1723554198820,29.4194,146.84,146.79,6.8121]
[1723554199020,20.0,146.83,146.8,6.8118]
[1723554199239,22.6089,146.84,146.82,23.8379]
[1723554199437,22.6089,146.84,146.79,6.8123]
[1723554199611,22.6089,146.84,146.8,6.8118]
[1723554199814,22.6089,146.84,146.82,6.8109]
[1723554200233,22.6089,146.84,146.81,23.8396]
[1723554200438,22.6089,146.84,146.78,17.15719]
[1723554200754,29.4191,146.84,146.79,6.8123]
[1723554201036,22.6089,146.84,146.81,6.8113]
[1723554201419,22.6089,146.84,146.8,23.8411]
[1723554201617,22.6089,146.84,146.77,17.15819]
[1723554201936,6.8119,146.8,146.77,17.0327]
[1723554202154,24.3123042,146.84,146.74,17.0361]
[1723554202458,6.8115,146.81,146.76,6.8137]
[1723554202656,6.8122,146.8,146.76,6.8137]
[1723554203035,6.8116,146.81,146.76,6.8137]
[1723554203229,29.419,146.84,146.71,38.98]
[1723554203429,26.8109,146.83,146.78,23.8438]
[1723554203625,6.8111,146.82,146.78,23.8438]
[1723554203831,20.0,146.83,146.75,17.0355]
[1723554204061,6.812,146.8,146.75,17.0355]
[1723554204372,6.812,146.8,146.75,23.8496]
[1723554204659,6.812,146.8,146.76,6.8138]
[1723554205133,60.68344744,146.83,146.75,17.0355]
[1723554205458,6.8134,146.77,146.73,6.8151]
[1723554205848,1.70370537,146.76,146.73,6.8151]
[1723554206028,6.813,146.78,146.73,6.8151]
[1723554206543,38.98,146.77,146.69,17.0418]
[1723554206860,6.8156,146.73,146.69,17.0418]
[1723554207047,6.5052,146.72,146.7,6.8165]
[1723554208042,6.5052,146.72,146.66,17.0453]
[1723554208273,6.5052,146.72,146.65,34.0929]
[1723554208463,6.5052,146.72,146.69,6.8167]
[1723554208634,6.5052,146.72,146.68,17.0436]
[1723554208635,6.5052,146.72,146.7,6.8165]
[1723554209037,20.0,146.77,146.74,6.8147]
[1723554209253,6.0582,146.76,146.73,6.8151]
[1723554209560,6.0582,146.76,146.69,0.12549]
[1723554209870,12.8722,146.76,146.72,17.0385]
[1723554210252,12.8721,146.76,146.72,23.8541]
[1723554210559,6.0582,146.76,146.72,17.0385]
[1723554210762,6.8148,146.74,146.7,6.8162]
[1723554211068,6.8144,146.75,146.71,6.8161]
[1723554212533,6.0582,146.76,146.7,0.12549]
[1723554212739,6.0582,146.76,146.7,45.50196]
[1723554213261,12.872,146.76,146.72,6.8155]
[1723554213468,6.0582,146.76,146.73,6.815]
[1723554213666,6.0582,146.76,146.74,6.8146]